fUSD/lending_fUSD_20260311
["ID","MTS","AMOUNT","RATE_DAILY","PERIOD"]
[408202602,1773226233829,-721.691172,0.00019793,2]
[408202603,1773226233840,-721.691172,0.00019793,2]
[408202604,1773226233849,-721.691172,0.00019793,2]
[408202605,1773226233858,-18417.53046178,0.00019793,2]
[408202606,1773226233871,-6345.75900507,0.00019793,2]
[408202613,1773226240196,-8174.81283315,0.00019793,2]
[408202614,1773226240205,-3200.0,0.000198,7]
[408202615,1773226240215,-489.17919,0.000198,2]
[408202616,1773226240224,-489.1792,0.000198,2]
[408202617,1773226240233,-3655.94844435,0.00019811,2]
[408202618,1773226240242,-4978.21433425,0.00019827,2]
[408202619,1773226240251,-998.19733441,0.00019833,2]
[408202620,1773226240264,-2657.75110994,0.00019833,2]
[408202621,1773226240273,-3617.6901409,0.00019856,2]
[408202622,1773226240284,-38.25830345,0.00019856,2]
[408202623,1773226240292,-744.03556886,0.00019863,2]
[408202641,1773226243048,-151.0,0.00019627,2]
[408202642,1773226243057,-151.0,0.00019711,2]
[408202643,1773226243067,-54.60272819,0.00019737,2]
[408202644,1773226243232,-96.39727181,0.00019737,2]
[408202645,1773226243242,-167.685632,0.00019793,2]
[408202646,1773226243251,-4234.17876539,0.00019863,2]
[408202647,1773226243260,-151.0,0.00019867,2]
[408202650,1773226243406,-17405.78691222,0.0001987,2]
[408202651,1773226243448,-482.2001122,0.00019872,2]
[408202652,1773226243458,-150.13270217,0.00019873,2]
[408202653,1773226243468,-3655.94844435,0.00019878,2]
[408202654,1773226243477,-168.0,0.00019887,2]
[408202655,1773226243486,-200.0,0.0001989,2]
[408202656,1773226243496,-151.0,0.00019897,2]
[408202657,1773226243505,-758.01210753,0.000199,2]
[408202658,1773226243514,-4486.1846,0.000199,2]
[408202659,1773226243523,-718.89768804,0.000199,2]
[408202660,1773226243532,-4978.21433425,0.000199,2]
[408202661,1773226243542,-600.0,0.000199,7]
[408202662,1773226243551,-1407.95917391,0.000199,2]
[408202665,1773226307725,211008.11620569,0.00047455,30]
[408202667,1773226345067,500.0,0.00047455,120]
[408202669,1773226374618,5000.0,0.00047457,30]
[408202670,1773226374891,5000.0,0.00047457,30]
[408202671,1773226375249,5000.0,0.00047457,30]
[408202672,1773226375523,5000.0,0.00047457,30]
[408202673,1773226376394,5000.0,0.00047457,30]
[408202674,1773226376714,5000.0,0.00047457,30]
[408202675,1773226376995,5000.0,0.00047457,30]
[408202676,1773226377275,5000.0,0.00047457,30]
[408202677,1773226377552,5000.0,0.00047457,30]
[408202678,1773226377822,5000.0,0.00047457,30]
[408202680,1773226400389,305.7,0.00047457,120]
[408202681,1773226435086,5796.59569845,0.00047457,30]
[408202683,1773226445788,-1541.2,0.00018315,2]
[408202684,1773226445816,-562.17,0.00018315,2]
[408202690,1773226644185,403.0,0.00047457,120]
[408202692,1773226669424,886.28477892,0.00047455,120]
[408202694,1773226735898,20000.0,0.00047455,30]
[408202696,1773226743612,3315.47410913,0.00047455,120]
[408202698,1773226805454,500.00949843,0.00047455,30]
[408202702,1773226852223,24.59197471,0.000162,5]
[408202704,1773226894494,10000.0,0.00047455,30]
[408202705,1773226897342,975.28,0.00047455,120]
[408202707,1773226919267,-17.3732382,0.000162,5]
[408202708,1773226919334,-3333.30738105,0.000162,5]
[408202710,1773226953329,676878.40060641,0.0004747,30]
[408202715,1773227144316,263.83367241,0.0004747,120]
[408202723,1773227359083,-1631.95614255,0.000162,5]
[408202724,1773227359107,-2500.0,0.0001701,2]
[408202725,1773227385065,4940.75301204,0.00047471,120]
[408202726,1773227386980,955.93,0.00015847,2]
[408202729,1773227410918,3000.0,0.00047471,120]
[408202730,1773227428363,1000.0,0.00047471,120]
[408202734,1773227431936,-1200.0,0.00017819,2]
[408202736,1773227431946,-600.0,0.0001782,2]
[408202738,1773227431956,-250.0,0.0001782,2]
[408202740,1773227431966,-2621.43,0.0001782,2]
[408202741,1773227431975,-294.20658118,0.000179,2]
[408202742,1773227431986,-381.016127,0.00018064,7]
[408202743,1773227431996,-500.0,0.0001845,2]
[408202744,1773227432006,-8624.9568,0.0001868,2]
[408202745,1773227432017,-514.7,0.00018788,2]
[408202746,1773227432027,-2217.05,0.00018943,2]
[408202747,1773227432037,-2578.96,0.00018988,2]
[408202748,1773227432046,-247.99,0.00019,7]
[408202749,1773227432057,-5027.71,0.00019,2]
[408202750,1773227432067,-150.99,0.00019,2]
[408202751,1773227432077,-1227.16,0.00019014,2]
[408202752,1773227432087,-6113.4,0.00019014,2]
[408202753,1773227432097,-238.1,0.00019014,2]
[408202754,1773227432107,-7655.43,0.00019014,2]
[408202755,1773227432116,-541.51720182,0.00019392,2]
[408202756,1773227432127,-42644.86587813,0.00019427,2]
[408202757,1773227432140,-30516.61545661,0.00019427,2]
[408202758,1773227432152,-7357.63596526,0.00019427,2]
[408202759,1773227432162,-153.807464,0.00019427,2]
[408202760,1773227432171,-151.0,0.00019427,2]
[408202761,1773227432180,-167.183002,0.00019427,2]
[408202762,1773227432190,-167.183002,0.00019427,2]
[408202763,1773227432204,-167.183002,0.00019427,2]
[408202764,1773227432214,-174.885878,0.00019427,2]
[408202765,1773227432224,-167.183002,0.00019427,2]
[408202766,1773227432234,-174.885878,0.00019427,2]
[408202767,1773227432244,-174.885878,0.00019427,2]
[408202768,1773227432253,-174.885878,0.00019427,2]
[408202769,1773227432263,-284.870467,0.00019427,2]
[408202770,1773227432273,-284.870467,0.00019427,2]
[408202771,1773227432283,-284.870467,0.00019427,2]
[408202772,1773227432293,-284.870467,0.00019427,2]
[408202773,1773227432304,-151.0,0.00019427,2]
[408202774,1773227432313,-151.0,0.00019427,2]
[408202775,1773227432323,-151.0,0.00019427,2]
[408202776,1773227432332,-151.0,0.00019427,2]
[408202778,1773227432342,-153.756774,0.00019427,2]
[408202780,1773227432352,-153.756774,0.00019427,2]
[408202781,1773227432362,-153.756774,0.00019427,2]
[408202782,1773227432371,-153.756774,0.00019427,2]
[408202783,1773227432380,-151.0,0.00019427,2]
[408202784,1773227432389,-151.0,0.00019427,2]
[408202785,1773227432399,-151.0,0.00019427,2]
[408202786,1773227432408,-151.0,0.00019427,2]
[408202787,1773227432419,-151.0,0.00019427,2]
[408202788,1773227432429,-166.66,0.00019429,2]
[408202789,1773227432439,-541.51720182,0.00019456,2]
[408202790,1773227432448,-500.0,0.00019473,2]
[408202791,1773227432457,-541.51720182,0.00019519,2]
[408202792,1773227432467,-1000.0,0.00019537,2]
[408202793,1773227432476,-480.0,0.00019542,2]
[408202794,1773227432489,-150.0,0.00019556,2]
[408202795,1773227432500,-150.0,0.00019556,2]
[408202796,1773227432510,-150.0,0.00019556,2]
[408202797,1773227432520,-150.0,0.00019556,2]
[408202798,1773227432529,-150.0,0.00019556,2]
[408202799,1773227432541,-500.0,0.00019556,2]
[408202800,1773227432551,-150.0,0.00019556,2]
[408202801,1773227432561,-150.84360211,0.00019556,2]
[408202802,1773227432571,-150.0,0.00019556,2]
[408202803,1773227432580,-150.0,0.00019556,2]
[408202804,1773227432590,-500.0,0.00019556,2]
[408202805,1773227432600,-150.0,0.00019556,2]
[408202806,1773227432609,-150.0,0.00019556,2]
[408202807,1773227432619,-541.51720182,0.00019583,2]
[408202808,1773227432629,-1220.49654892,0.000196,2]
[408202809,1773227432639,-160.0,0.00019603,2]
[408202810,1773227432650,-150.0,0.00019611,2]
[408202811,1773227432661,-150.0,0.00019611,2]
[408202812,1773227432671,-512.63986513,0.00019611,2]
[408202813,1773227432683,-150.0,0.00019611,2]
[408202814,1773227432693,-508.22060755,0.00019611,2]
[408202815,1773227432702,-541.51720182,0.00019646,2]
[408202816,1773227432711,-3284.5133987,0.00019689,2]
[408202817,1773227432720,-333.33333,0.000197,2]
[408202818,1773227432730,-333.33333,0.000197,2]
[408202819,1773227432739,-2500.0,0.00019702,2]
[408202820,1773227432748,-541.51720182,0.0001971,2]
[408202821,1773227432757,-200.0,0.00019711,2]
[408202822,1773227432768,-1866.379,0.00019716,2]
[408202823,1773227432778,-514.7,0.00019728,2]
[408202824,1773227432788,-200.0,0.00019737,2]
[408202825,1773227432797,-200.0,0.00019754,2]
[408202826,1773227432807,-2461.0,0.00019766,2]
[408202827,1773227432816,-5996.0,0.00019766,2]
[408202828,1773227432825,-541.51720182,0.00019773,2]
[408202829,1773227432834,-900.26,0.00019785,2]
[408202830,1773227432843,-200.0,0.00019793,2]
[408202831,1773227432853,-9241.9551135,0.00019802,2]
[408202832,1773227432863,-200.0,0.00019811,2]
[408202833,1773227432872,-200.0,0.00019827,2]
[408202834,1773227432885,-3491.3858906,0.0001983,2]
[408202835,1773227432894,-3098.5163311,0.0001983,2]
[408202836,1773227432904,-155.904935,0.0001983,2]
[408202837,1773227432913,-151.0,0.0001983,2]
[408202838,1773227432923,-151.0,0.0001983,2]
[408202839,1773227432932,-151.0,0.0001983,2]
[408202840,1773227432941,-541.51720182,0.00019837,2]
[408202841,1773227432950,-200.0,0.00019839,2]
[408202842,1773227432960,-200.0,0.0001984,2]
[408202843,1773227432970,-200.0,0.0001987,2]
[408202844,1773227432980,-151.0,0.0001987,2]
[408202845,1773227432989,-151.0,0.0001987,2]
[408202846,1773227432999,-151.0,0.0001987,2]
[408202847,1773227433008,-151.0,0.0001987,2]
[408202848,1773227433018,-151.0,0.0001987,2]
[408202849,1773227433027,-1176.7333879,0.0001988,2]
[408202850,1773227433036,-365.59484448,0.0001988,2]
[408202851,1773227433046,-365.59484443,0.00019882,2]
[408202852,1773227433055,-284.870467,0.00019884,2]
[408202853,1773227433064,-284.870467,0.00019884,2]
[408202854,1773227433077,-284.870467,0.00019884,2]
[408202855,1773227433086,-284.870467,0.00019884,2]
[408202856,1773227433095,-365.59484443,0.00019884,2]
[408202857,1773227433105,-365.59484443,0.00019887,2]
[408202858,1773227433114,-365.59484443,0.00019889,2]
[408202859,1773227433124,-151.0,0.00019891,2]
[408202860,1773227433138,-151.0,0.00019891,2]
[408202861,1773227433147,-151.0,0.00019891,2]
[408202862,1773227433156,-153.756774,0.00019891,2]
[408202863,1773227433166,-153.756774,0.00019891,2]
[408202864,1773227433177,-153.756774,0.00019891,2]
[408202865,1773227433187,-153.756774,0.00019891,2]
[408202866,1773227433197,-365.59484443,0.00019891,2]
[408202867,1773227433206,-365.59484443,0.00019893,2]
[408202868,1773227433216,-365.59484443,0.00019896,2]
[408202869,1773227433225,-168.0,0.00019896,2]
[408202870,1773227433235,-365.59484443,0.00019898,2]
[408202871,1773227433244,-68.40970457,0.000199,2]
[408202872,1773227433254,-200.0,0.000199,2]
[408202873,1773227433263,-616.19801832,0.000199,2]
[408202874,1773227433275,-541.51720182,0.000199,2]
[408202875,1773227433283,-151.0,0.000199,2]
[408202876,1773227433293,-151.0,0.000199,2]
[408202877,1773227433302,-167.183002,0.000199,2]
[408202878,1773227433312,-167.183002,0.000199,2]
[408202879,1773227433321,-167.183002,0.000199,2]
[408202880,1773227433331,-174.885878,0.000199,2]
[408202881,1773227433342,-167.183002,0.000199,2]
[408202882,1773227433351,-174.885878,0.000199,2]
[408202883,1773227433362,-174.885878,0.000199,2]
[408202884,1773227433373,-174.885878,0.000199,2]
[408202885,1773227433382,-333.33334,0.000199,2]
[408202886,1773227433392,-333.33333,0.000199,2]
[408202887,1773227433402,-333.33333,0.000199,2]
[408202888,1773227433411,-333.33334,0.000199,2]
[408202889,1773227433420,-296.98389022,0.000199,2]
[408202890,1773227433430,-197.70766094,0.000199,3]
[408202891,1773227433440,-1470.94151109,0.000199,2]
[408202892,1773227433449,-176.04305709,0.000199,2]
[408202893,1773227433459,-365.59484443,0.000199,2]
[408202894,1773227433468,-5363.87874052,0.000199,2]
[408202895,1773227433480,-168.0,0.00019903,2]
[408202896,1773227433490,-449.34636631,0.00019972,2]
[408202897,1773227433501,-506.63695301,0.00019972,2]
[408202898,1773227433511,-500.0,0.00019972,2]
[408202899,1773227433520,-500.0,0.00019972,2]
[408202900,1773227433530,-500.0,0.00019972,2]
[408202901,1773227433540,-500.0,0.00019972,2]
[408202902,1773227433549,-2393.03665015,0.00019973,2]
[408202903,1773227433715,-921.25623749,0.00019973,2]
[408202904,1773227433728,-382.70711236,0.00019973,2]
[408202905,1773227433738,-617.29288764,0.00019973,2]
[408202906,1773227433749,-3.70711236,0.00019973,2]
[408202907,1773227433759,-343.14091936,0.00019973,2]
[408202908,1773227433775,-156.85908064,0.00019973,2]
[408202909,1773227433784,-138.23174446,0.00019977,2]
[408202910,1773227433796,-12.76825554,0.00019977,2]
[408202911,1773227433805,-151.0,0.00019977,2]
[408202912,1773227433814,-151.0,0.00019977,2]
[408202913,1773227433824,-500.0,0.00019979,2]
[408202914,1773227433834,-20.839923,0.00019979,2]
[408202915,1773227433848,-479.160077,0.00019979,2]
[408202916,1773227433858,-21.839923,0.0001998,2]
[408202917,1773227433872,-1739.93898666,0.0001998,2]
[408202918,1773227433884,-2351.54804654,0.0001998,2]
[408202919,1773227433895,-348.49992775,0.0001998,2]
[408202920,1773227433907,-456.50541151,0.0001998,2]
[408202921,1773227433917,-114578.35677862,0.0001998,2]
[408202922,1773227433927,-151.0,0.0001998,2]
[408202923,1773227433936,-154.789257,0.0001998,2]
[408202924,1773227433946,-151.0,0.0001998,2]
[408202925,1773227433957,-521.644222,0.0001998,2]
[408202926,1773227433966,-521.644222,0.0001998,2]
[408202927,1773227433976,-521.644222,0.0001998,2]
[408202928,1773227433986,-521.644222,0.0001998,2]
[408202929,1773227433995,-151.0,0.0001998,2]
[408202930,1773227434008,-151.0,0.0001998,2]
[408202931,1773227434017,-154.242032,0.0001998,2]
[408202932,1773227434026,-170.201125,0.0001998,2]
[408202933,1773227434036,-170.201125,0.0001998,2]
[408202934,1773227434046,-170.201125,0.0001998,2]
[408202935,1773227434056,-170.201125,0.0001998,2]
[408202936,1773227434065,-151.0,0.0001998,2]
[408202937,1773227434076,-151.0,0.0001998,2]
[408202938,1773227434086,-151.0,0.0001998,2]
[408202939,1773227434095,-151.0,0.0001998,2]
[408202940,1773227434105,-167.183002,0.0001998,2]
[408202941,1773227434114,-167.183002,0.0001998,2]
[408202942,1773227434124,-167.183002,0.0001998,2]
[408202943,1773227434137,-174.885878,0.0001998,2]
[408202944,1773227434148,-167.183002,0.0001998,2]
[408202945,1773227434157,-174.885878,0.0001998,2]
[408202946,1773227434167,-174.885878,0.0001998,2]
[408202947,1773227434176,-174.885878,0.0001998,2]
[408202948,1773227434186,-284.870467,0.0001998,2]
[408202949,1773227434195,-284.870467,0.0001998,2]
[408202950,1773227434206,-284.870467,0.0001998,2]
[408202951,1773227434216,-284.870467,0.0001998,2]
[408202952,1773227434225,-151.0,0.0001998,2]
[408202953,1773227434234,-151.0,0.0001998,2]
[408202954,1773227434243,-301.086237,0.0001998,2]
[408202955,1773227434253,-153.756774,0.0001998,2]
[408202956,1773227434262,-153.756774,0.0001998,2]
[408202957,1773227434273,-153.756774,0.0001998,2]
[408202958,1773227434282,-153.756774,0.0001998,2]
[408202959,1773227434293,-151.0,0.0001998,2]
[408202960,1773227434303,-151.0,0.0001998,2]
[408202961,1773227434312,-151.0,0.0001998,2]
[408202962,1773227434321,-151.0,0.0001998,2]
[408202963,1773227434331,-568.94491405,0.0001999,2]
[408202964,1773227434340,-568.94491405,0.0001999,2]
[408202965,1773227434349,-568.94491405,0.0001999,2]
[408202966,1773227434358,-151.0,0.00019997,2]
[408202967,1773227434368,-151.0,0.00019997,2]
[408202968,1773227434377,-1000.0,0.00019999,2]
[408202969,1773227434389,-300.0,0.00019999,2]
[408202970,1773227434399,-417.14321601,0.00019999,2]
[408202971,1773227434408,-300.0,0.00019999,2]
[408202972,1773227434419,-666.0,0.00019999,2]
[408202973,1773227434428,-300.0,0.00019999,2]
[408202974,1773227434438,-300.0,0.00019999,2]
[408202975,1773227434449,-514.68332099,0.00019999,2]
[408202976,1773227434458,-500.0,0.00019999,2]
[408202977,1773227434467,-500.0,0.00019999,2]
[408202978,1773227434476,-500.0,0.00019999,2]
[408202979,1773227434485,-500.0,0.00019999,2]
[408202980,1773227434494,-500.0,0.00019999,2]
[408202981,1773227434504,-500.0,0.00019999,2]
[408202982,1773227434514,-500.0,0.00019999,2]
[408202983,1773227434523,-500.0,0.00019999,2]
[408202984,1773227434533,-500.0,0.00019999,2]
[408202985,1773227434542,-500.0,0.00019999,2]
[408202986,1773227434551,-350.0,0.00019999,2]
[408202987,1773227434561,-350.0,0.00019999,2]
[408202988,1773227434570,-304.43194707,0.00019999,2]
[408202989,1773227434582,-630.81055911,0.00019999,2]
[408202990,1773227434592,-500.0,0.00019999,2]
[408202991,1773227434603,-500.0,0.00019999,2]
[408202992,1773227434613,-500.0,0.00019999,2]
[408202993,1773227434622,-500.0,0.00019999,2]
[408202994,1773227434632,-515.12356361,0.00019999,2]
[408202995,1773227434642,-500.0,0.00019999,2]
[408202996,1773227434651,-500.0,0.00019999,2]
[408202997,1773227434661,-530.47109549,0.00019999,2]
[408202998,1773227434672,-500.0,0.00019999,2]
[408202999,1773227434681,-500.0,0.00019999,2]
[408203000,1773227434690,-500.0,0.00019999,2]
[408203001,1773227434700,-500.0,0.00019999,2]
[408203002,1773227434709,-500.0,0.00019999,2]
[408203003,1773227434718,-500.0,0.00019999,2]
[408203004,1773227434727,-500.0,0.00019999,2]
[408203005,1773227434738,-500.0,0.00019999,2]
[408203006,1773227434747,-500.0,0.00019999,2]
[408203007,1773227434757,-500.0,0.00019999,2]
[408203008,1773227434767,-500.0,0.00019999,2]
[408203009,1773227434780,-601.92280551,0.00019999,2]
[408203010,1773227434789,-1058.20411012,0.00019999,5]
[408203011,1773227434800,-1077.92009856,0.00019999,5]
[408203012,1773227434809,-321.01398319,0.00019999,2]
[408203013,1773227434819,-217.39000551,0.00019999,2]
[408203014,1773227434828,-500.0,0.00019999,2]
[408203015,1773227434838,-500.0,0.00019999,2]
[408203016,1773227434847,-156.09023142,0.00019999,2]
[408203017,1773227434856,-228.25007536,0.00019999,2]
[408203018,1773227434865,-1176.0,0.0002,2]
[408203019,1773227434874,-1176.0,0.0002,2]
[408203020,1773227434884,-1180.0,0.0002,2]
[408203021,1773227434894,-590653.90653546,0.0002,2]
[408203022,1773227434904,-21935.6,0.0002,2]
[408203023,1773227434913,-1509105.94104179,0.0002,2]
[408203025,1773227437963,-150.0,0.0001998,2]
[408203026,1773227437973,-1289.48497903,0.0002,2]
[408203027,1773227438016,-302.92287827,0.0002,2]
[408203028,1773227438176,-2206.24593183,0.0002,2]
[408203053,1773227440126,500.0,0.00047471,120]
[408203084,1773227440429,-281.649,0.000196,2]
[408203085,1773227440441,-532.01536595,0.000196,2]
[408203086,1773227440451,-1026.80375376,0.0002,2]
[408203087,1773227440479,-1855.79299252,0.0002,2]
[408203088,1773227440490,-88020.51562171,0.0002,2]
[408203090,1773227440501,-570.54789703,0.0002,2]
[408203092,1773227440511,-3208.08781045,0.0002,2]
[408203118,1773227440742,-5523.86793438,0.0002,2]
[408203125,1773227440797,-10011.22949497,0.0002,2]
[408203127,1773227440808,-1917.95021935,0.0002,2]
[408203129,1773227440820,-789.47421459,0.0002,2]
[408203132,1773227440831,-442.2986497,0.0002,2]
[408203143,1773227443050,-40038.67097982,0.0002,2]
[408203147,1773227445977,-2919.41964065,0.0002,2]
[408203148,1773227446137,-9191.18714785,0.0002,2]
[408203153,1773227530332,500.0,0.00047471,120]
[408203154,1773227536548,151.0,0.00047471,120]
[408203157,1773227627240,209.21,9.948e-05,2]
[408203158,1773227627438,209.21,0.00010472,2]
[408203159,1773227627643,209.21,0.00010995,2]
[408203160,1773227627833,209.21,0.00011519,2]
[408203161,1773227628042,209.21,0.00012043,2]
[408203162,1773227628260,209.21,0.00012566,2]
[408203163,1773227628462,209.21,0.0001309,2]
[408203164,1773227628684,209.21,0.00013613,2]
[408203166,1773227674055,-209.21,0.00014137,2]
[408203167,1773227674080,-209.21,0.00014661,2]
[408203169,1773227711897,500.0,0.00047471,120]
[408203170,1773227723566,151.0,0.00047471,120]
[408203174,1773227827726,200.0,0.00047471,120]
[408203175,1773227828261,500.0,0.00047471,120]
[408203176,1773227828873,500.0,0.00047471,120]
[408203177,1773227838146,151.0,0.00047471,120]
[408203178,1773227838756,151.0,0.00047471,120]
[408203180,1773227888986,151.0,0.00047457,120]
[408203181,1773227889611,151.0,0.00047457,120]
[408203182,1773227895011,500.0,0.00047457,120]
[408203185,1773227948580,500.0,0.00047457,120]
[408203186,1773227949184,500.0,0.00047457,120]
[408203187,1773227949824,500.0,0.00047457,120]
[408203188,1773227950459,500.0,0.00047457,120]
[408203189,1773227960181,151.0,0.00047457,120]
[408203190,1773227960809,151.0,0.00047457,120]
[408203191,1773227961426,151.0,0.00047457,120]
[408203194,1773228011784,240.83222841,0.00047457,120]
[408203195,1773228027681,151.0,0.00047457,120]
[408203196,1773228028760,151.0,0.00047457,120]
[408203197,1773228029887,151.0,0.00047457,120]
[408203199,1773228066602,1030.0,0.00047457,120]
[408203200,1773228067199,1068.11,0.00047457,120]
[408203201,1773228067806,1107.63007,0.00047457,120]
[408203202,1773228068431,1148.61238259,0.00047457,120]
[408203203,1773228068971,151.0,0.00047457,120]
[408203204,1773228069027,1191.11104075,0.00047457,120]
[408203205,1773228070102,1235.18214925,0.00047457,120]
[408203206,1773228070724,1280.88388878,0.00047457,120]
[408203207,1773228071354,1328.27659266,0.00047457,120]
[408203208,1773228071948,1377.42282659,0.00047457,120]
[408203209,1773228072560,1428.38747117,0.00047457,120]
[408203210,1773228072733,151.0,0.00047457,120]
[408203211,1773228073162,1481.23780761,0.00047457,120]
[408203214,1773228124516,919.44705994,0.00047457,120]
[408203216,1773228191651,500.0,0.00047457,120]
[408203217,1773228192274,500.0,0.00047457,120]
[408203220,1773228248626,500.0,0.00047457,120]
[408203221,1773228249030,151.0,0.00047457,120]
[408203222,1773228249241,500.0,0.00047457,120]
[408203223,1773228249628,151.0,0.00047457,120]
[408203224,1773228249844,500.0,0.00047457,120]
[408203225,1773228254611,500.0,0.00047457,120]
[408203226,1773228255220,500.0,0.00047457,120]
[408203227,1773228255864,500.0,0.00047457,120]
[408203228,1773228256506,500.0,0.00047457,120]
[408203229,1773228257121,500.0,0.00047457,120]
[408203230,1773228258238,500.0,0.00047457,120]
[408203231,1773228258877,500.0,0.00047457,120]
[408203232,1773228259992,500.0,0.00047457,120]
[408203233,1773228260650,500.0,0.00047457,120]
[408203234,1773228261283,500.0,0.00047457,120]
[408203236,1773228311983,500.0,0.00047457,120]
[408203237,1773228313195,500.0,0.00047457,120]
[408203239,1773228369299,500.0,0.00047457,120]
[408203240,1773228369944,500.0,0.00047457,120]
[408203241,1773228370583,500.0,0.00047457,120]
[408203243,1773228390126,-209.21,0.00015184,2]
[408203244,1773228390147,-162.71624749,0.00015708,2]
[408203246,1773228430556,500.0,0.00047457,120]
[408203248,1773228494071,428.63987053,0.00047482,120]
[408203250,1773228507872,1600.08,0.00047482,30]
[408203258,1773228632085,-46.49375251,0.00015708,2]
[408203259,1773228632094,-209.21,0.00016231,2]
[408203260,1773228632104,-24.09053128,0.00016702,2]
[408203261,1773228632191,-275.90946872,0.00016702,2]
[408203262,1773228632202,-1200.0,0.00016702,2]
[408203263,1773228632211,-300.0,0.00016702,2]
[408203264,1773228632221,-275.76954708,0.00016703,2]
[408203265,1773228632230,-209.21,0.00016755,2]
[408203266,1773228632239,-150.0,0.00017278,2]
[408203267,1773228632248,-209.21,0.00017279,2]
[408203268,1773228632257,-315.76967296,0.00017279,2]
[408203269,1773228632268,-1006.18509228,0.00017279,2]
[408203270,1773228632277,-195.0,0.00017279,2]
[408203271,1773228632286,-195.0,0.00017279,2]
[408203272,1773228632295,-2500.0,0.00017279,2]
[408203273,1773228632304,-1586.43119841,0.00017279,2]
[408203274,1773228632314,-288.825225,0.00017409,7]
[408203275,1773228632323,-243.213766,0.0001746,7]
[408203276,1773228632332,-209.21,0.00017802,2]
[408203277,1773228632340,-150.0,0.0001782,2]
[408203278,1773228632350,-1616.9,0.00018064,2]
[408203279,1773228632359,-420.0,0.00018247,2]
[408203280,1773228632368,-209.21,0.00018326,2]
[408203281,1773228632377,-210.45,0.00018379,2]
[408203282,1773228632386,-501.97456647,0.00018773,2]
[408203283,1773228632395,-500.0,0.00018773,2]
[408203284,1773228632404,-500.0,0.00018773,2]
[408203285,1773228632413,-4629.2875091,0.00018788,2]
[408203289,1773228638338,-1154.38291172,0.00018688,2]
[408203290,1773228638394,-1064.40417485,0.00018688,2]
[408203291,1773228638450,-103060.53561343,0.00018688,2]
[408203292,1773228638459,-31580.22302259,0.00018788,2]
[408203293,1773228638471,-387.75502244,0.00018788,2]
[408203294,1773228638504,-12117.01504587,0.00018788,2]
[408203295,1773228638514,-667.95539155,0.00018788,2]
[408203296,1773228638523,-2343.13095356,0.00018788,2]
[408203297,1773228638534,-1721.64126178,0.00018788,2]
[408203298,1773228638543,-1548.02853715,0.00018788,2]
[408203299,1773228638553,-2544.71769995,0.00018788,2]
[408203300,1773228638562,-209.21,0.00018849,2]
[408203301,1773228638572,-151.0,0.00018877,2]
[408203302,1773228638581,-151.0,0.00018877,2]
[408203303,1773228638591,-151.0,0.00018877,2]
[408203304,1773228638600,-151.0,0.00018877,2]
[408203305,1773228638609,-151.0,0.00018877,2]
[408203306,1773228638619,-151.0,0.00018877,2]
[408203307,1773228638628,-151.0,0.00018877,2]
[408203308,1773228638637,-151.0,0.00018877,2]
[408203309,1773228638647,-151.0,0.00018877,2]
[408203310,1773228638657,-151.0,0.00018877,2]
[408203311,1773228638666,-151.0,0.00018877,2]